bitfinex-derivatives/quotes_SOLF0:USTF0_20250424
["timestamp","ask_amount","ask_price","bid_price","bid_amount"]
[1745499203380,6.64916402,148.27,148.23,5.0]
[1745499203679,6.64916402,148.27,148.25,6.7436]
[1745499204181,6.64916402,148.27,148.24,6.7441]
[1745499204182,13.39226402,148.27,148.24,6.7441]
[1745499204382,6.64916402,148.25,148.23,5.0]
[1745499204980,6.7443,148.24,148.23,5.0]
[1745499205172,6.7443,148.24,148.19,5.0]
[1745499205377,6.64916402,148.22,148.19,5.0]
[1745499206079,6.64916402,148.22,148.21,6.7456]
[1745499208381,6.7443,148.24,148.21,6.7456]
[1745499208580,6.64916402,148.22,148.21,6.7456]
[1745499210677,31.22916402,148.22,148.21,6.7456]
[1745499213490,24.58,148.22,148.21,6.7456]
[1745499214387,24.58,148.25,148.24,6.7443]
[1745499214587,24.58,148.28,148.24,6.64916402]
[1745499214890,24.58,148.31,148.29,6.7417]
[1745499215082,31.22916402,148.31,148.26,6.64916402]
[1745499215389,31.22916402,148.31,148.29,6.7419]
[1745499215591,31.22916402,148.31,148.26,6.64916402]
[1745499216889,31.22916402,148.31,148.28,6.7422]
[1745499218289,31.22916402,148.31,148.29,6.7419]
[1745499218494,31.22916402,148.31,148.28,5.0]
[1745499218793,31.22916402,148.31,148.28,11.64916402]
[1745499218995,31.22916402,148.31,148.29,6.7418]
[1745499219990,31.22916402,148.31,148.3,6.7416]
[1745499220496,24.58,148.31,148.3,6.7416]
[1745499220793,31.22916402,148.34,148.32,6.7405]
[1745499221196,31.22916402,148.34,148.29,6.64916402]
[1745499221895,31.22916402,148.34,148.33,6.7402]
[1745499222196,31.22916402,148.34,148.29,6.64916402]
[1745499222498,31.22916402,148.34,148.32,6.7404]
[1745499224796,24.58,148.34,148.32,6.7406]
[1745499226895,24.58,148.34,148.33,6.7402]
[1745499227094,24.58,148.34,148.33,13.38936402]
[1745499228399,24.56,148.37,148.35,6.739]
[1745499229399,24.56,148.37,148.33,6.64916402]
[1745499229400,24.56,148.37,148.36,6.7388]
[1745499229897,31.20916402,148.37,148.36,6.7388]
[1745499230503,31.20916402,148.37,148.35,6.7391]
[1745499231001,6.64916402,148.36,148.35,6.7391]
[1745499231602,6.64916402,148.36,148.34,6.7395]
[1745499231801,6.64916402,148.35,148.34,6.7395]
[1745499233104,6.64916402,148.36,148.35,6.7393]
[1745499233301,6.64916402,148.36,148.32,5.0]
[1745499233703,6.64916402,148.36,148.34,6.7395]
[1745499234002,31.2986,148.37,148.34,6.7395]
[1745499234203,6.64916402,148.35,148.34,6.7395]
[1745499237203,6.64916402,148.35,148.32,5.0]
[1745499237404,6.64916402,148.35,148.29,13.64556402]
[1745499238208,6.64916402,148.35,148.32,6.7404]
[1745499238209,13.38866402,148.35,148.32,6.7404]
[1745499239909,13.38866402,148.35,148.33,6.7401]
[1745499240205,6.64916402,148.34,148.33,6.7401]
[1745499241604,6.64916402,148.34,148.32,6.7404]
[1745499241905,31.18916402,148.33,148.29,5.0]
[1745499242405,24.54,148.33,148.31,6.7409]
[1745499242607,24.54,148.33,148.29,11.64916402]
[1745499243111,24.54,148.33,148.29,6.64916402]
[1745499243611,24.54,148.33,148.32,6.7406]
[1745499244608,24.54,148.33,148.29,6.64916402]
[1745499245113,24.54,148.33,148.32,6.7406]
[1745499245300,6.64916402,148.36,148.31,6.64916402]
[1745499245601,31.18916402,148.36,148.31,6.64916402]
[1745499245805,31.18916402,148.36,148.34,6.7394]
[1745499246112,24.54,148.36,148.33,6.64916402]
[1745499246407,24.54,148.36,148.34,6.7394]
[1745499247112,24.54,148.36,148.35,6.7393]
[1745499247907,24.54,148.36,148.31,6.64916402]
[1745499248112,6.64916402,148.35,148.31,6.64916402]
[1745499248311,6.64916402,148.35,148.33,6.7398]
[1745499249213,6.64916402,148.35,148.34,6.7397]
[1745499250713,24.54,148.36,148.35,6.7393]
[1745499254218,31.18916402,148.39,148.33,11.64916402]
[1745499255222,31.18916402,148.39,148.38,6.7379]
[1745499255821,510.02,148.42,148.4,6.7367]
[1745499256020,6.64916402,148.41,148.36,5.0]
[1745499256620,6.64916402,148.41,148.4,6.7367]
[1745499256826,6.64916402,148.41,148.36,5.0]
[1745499257125,6.64916402,148.37,148.36,6.7386]
[1745499257326,6.64916402,148.37,148.33,11.64916402]
[1745499257624,6.64916402,148.35,148.33,5.0]
[1745499258020,31.2797,148.34,148.33,5.0]
[1745499258524,24.54,148.34,148.29,5.0]
[1745499258724,6.64916402,148.32,148.29,5.0]
[1745499259225,6.64916402,148.32,148.3,6.7412]
[1745499259718,6.64916402,148.32,148.29,5.0]
[1745499259924,6.64916402,148.32,148.31,6.7411]
[1745499260626,6.64916402,148.32,148.3,6.7414]
[1745499260828,6.64916402,148.32,148.29,5.0]
[1745499261029,6.64916402,148.3,148.29,11.7416]
[1745499263231,6.64916402,148.32,148.31,6.7409]
[1745499263926,6.64916402,148.32,148.3,6.7413]
[1745499264525,6.64916402,148.32,148.29,5.0]
[1745499264731,6.64916402,148.3,148.26,5.0]
[1745499265027,31.18916402,148.3,148.26,5.0]
[1745499265230,31.18916402,148.3,148.28,6.7421]
[1745499265630,31.18916402,148.3,148.26,5.0]
[1745499265631,31.18916402,148.3,148.29,6.742]
[1745499269733,31.18916402,148.3,148.29,11.742]
[1745499270733,31.18916402,148.3,148.29,6.742]
[1745499278739,24.54,148.3,148.29,6.742]
[1745499281640,24.54,148.3,148.29,11.742]
[1745499281938,24.54,148.33,148.32,6.7402]
[1745499288145,24.54,148.33,148.3,6.7415]
[1745499288448,6.64916402,148.32,148.29,5.0]
[1745499288745,6.64916402,148.3,148.29,5.0]
[1745499288948,13.39076402,148.3,148.26,11.64916402]
[1745499289149,6.64916402,148.3,148.26,5.0]
[1745499289444,24.54,148.29,148.28,6.7421]
[1745499298845,24.54,148.33,148.28,6.64916402]
[1745499299051,31.18916402,148.33,148.28,6.64916402]
[1745499299348,31.18916402,148.33,148.31,6.7409]
[1745499299950,31.18916402,148.33,148.32,6.7406]
[1745499300441,24.54,148.33,148.32,6.7406]
[1745499301650,31.18916402,148.33,148.32,6.7406]
[1745499304854,24.54,148.33,148.32,6.7406]
[1745499305054,516.60916402,148.36,148.35,6.7393]
[1745499306656,31.16916402,148.36,148.35,6.7393]
[1745499308058,24.52,148.36,148.35,6.7393]
[1745499309659,6.64916402,148.4,148.39,6.7375]
[1745499309954,31.16916402,148.4,148.39,6.7375]
[1745499310851,1.17290192,148.48,148.47,6.7338]
[1745499311159,95.41974298,148.53,148.48,5.0]
[1745499311359,95.41974298,148.53,148.5,6.64916402]
[1745499311562,95.41974298,148.53,148.5,13.38166402]
[1745499312151,95.41974298,148.53,148.5,20.349206]
[1745499312860,63.61316199,148.52,148.51,6.732]
[1745499313063,63.61316199,148.52,148.51,18.69954198]
[1745499313263,63.61316199,148.52,148.46,5.0]
[1745499313453,63.61316199,148.52,148.5,5.0]
[1745499314463,63.61316199,148.52,148.47,11.7337]
[1745499314662,63.61316199,148.52,148.48,6.94981806]
[1745499314863,63.61316199,148.52,148.47,11.7337]
[1745499315164,63.61316199,148.52,148.48,6.9497344]
[1745499315367,63.61316199,148.52,148.47,11.7337]
[1745499317066,24.52,148.53,148.47,11.7337]
[1745499317266,24.52,148.53,148.47,5.0]
[1745499318063,24.52,148.53,148.47,11.7335]
[1745499319665,24.52,148.53,148.47,5.0]
[1745499320166,31.2514,148.53,148.47,5.0]
[1745499321269,6.7316,148.52,148.47,5.0]
[1745499321467,24.52,148.53,148.47,5.0]
[1745499322064,24.52,148.53,148.48,6.7332]
[1745499324969,24.52,148.53,148.47,5.0]
[1745499324970,24.5,148.56,148.49,10.31558079]
[1745499325167,24.5,148.56,148.5,5.0]
[1745499325469,24.5,148.56,148.47,39.81558079]
[1745499325669,6.731,148.54,148.49,6.7329]
[1745499325873,6.731,148.54,148.47,39.81558079]
[1745499326071,6.731,148.54,148.49,6.7326]
[1745499327080,6.7311,148.53,148.49,6.7326]
[1745499327279,6.7311,148.53,148.5,6.7324]
[1745499327481,6.7311,148.53,148.47,39.81558079]
[1745499327974,6.7311,148.53,148.49,6.7327]
[1745499328178,6.7316,148.52,148.49,6.7327]
[1745499328380,10.31558079,148.55,148.49,6.7327]
[1745499328683,6.7313,148.53,148.49,6.7327]
[1745499329583,6.7316,148.52,148.49,6.7327]
[1745499329780,10.31558079,148.55,148.5,6.7325]
[1745499329978,6.7314,148.53,148.5,6.7325]
[1745499330279,6.7314,148.53,148.47,39.81558079]
[1745499330978,6.7314,148.53,148.49,6.7326]
[1745499331581,10.31558079,148.55,148.49,6.7326]
[1745499332784,6.7314,148.53,148.49,6.7326]
[1745499333283,6.7314,148.53,148.49,13.33295846]
[1745499333584,6.7314,148.53,148.5,6.7324]
[1745499340490,13.33125846,148.54,148.49,6.60035846]
[1745499340691,6.60035846,148.53,148.49,6.60035846]
[1745499340991,13.33155846,148.53,148.51,6.7318]
[1745499341888,6.60035846,148.55,148.52,6.7316]
[1745499342191,6.60035846,148.55,148.5,6.60035846]
[1745499342490,6.7309,148.54,148.51,6.7318]
[1745499343890,6.7309,148.54,148.52,6.7315]
[1745499344491,6.7311,148.53,148.51,6.7318]
[1745499344891,6.60035846,148.54,148.51,6.7318]
[1745499345191,13.33125846,148.54,148.51,6.7318]
[1745499345987,13.33125846,148.54,148.49,6.60035846]
[1745499346193,13.33125846,148.54,148.52,6.7315]
[1745499346695,6.60035846,148.54,148.53,6.7311]
[1745499346894,13.33075846,148.55,148.53,6.7311]
[1745499348092,13.33075846,148.55,148.52,6.7314]
[1745499349196,13.33075846,148.55,148.53,13.68147085]
[1745499349390,13.33075846,148.55,148.53,6.7309]
[1745499350597,13.33075846,148.55,148.52,6.7313]
[1745499350895,13.33075846,148.55,148.53,6.95731671]
[1745499351095,13.33075846,148.55,148.49,6.60035846]
[1745499351297,13.33075846,148.55,148.5,6.95725963]
[1745499351496,13.33075846,148.55,148.51,6.95725963]
[1745499351697,6.60035846,148.55,148.53,6.7308]
[1745499352698,13.33065846,148.55,148.52,6.7313]
[1745499352895,13.33065846,148.55,148.49,6.60035846]
[1745499353096,13.33065846,148.55,148.5,6.65698835]
[1745499353298,13.33065846,148.55,148.51,6.65698835]
[1745499353595,13.33065846,148.55,148.52,6.65698835]
[1745499353795,13.33065846,148.55,148.53,13.38788835]
[1745499353998,13.33065846,148.55,148.53,6.7309]
[1745499354198,13.33065846,148.55,148.54,6.68124108]
[1745499355596,6.60035846,148.55,148.54,13.41194108]
[1745499357001,6.60035846,148.55,148.54,6.7307]
[1745499359000,6.60035846,148.55,148.53,6.7309]
[1745499359200,6.60035846,148.55,148.5,6.60035846]
[1745499359595,24.5,148.56,148.5,6.60035846]
[1745499359802,31.10035846,148.56,148.51,11.60035846]
[1745499360202,6.60035846,148.54,148.51,5.0]
[1745499360403,6.60035846,148.53,148.51,5.0]
[1745499361203,6.60035846,148.53,148.52,6.7311]
[1745499361402,6.60035846,148.53,148.51,5.0]
[1745499361601,6.60035846,148.52,148.48,5.0]
[1745499361902,6.60035846,148.52,148.51,6.7318]
[1745499364706,6.60035846,148.53,148.52,6.7316]
[1745499366003,6.60035846,148.54,148.53,6.7311]
[1745499366708,6.60035846,148.55,148.53,6.7311]
[1745499367008,6.60035846,148.55,148.54,6.7307]
[1745499379813,6.60035846,148.55,148.48,5.0]
[1745499380018,6.60035846,148.53,148.48,11.60035846]
[1745499380415,6.60035846,148.57,148.52,6.60035846]
[1745499380619,6.60035846,148.57,148.54,5.0]
[1745499380820,6.60035846,148.56,148.54,5.0]
[1745499381020,31.06035846,148.55,148.54,5.0]
[1745499381517,31.06035846,148.55,148.51,11.7316]
[1745499381716,6.60035846,148.53,148.51,11.7316]
[1745499382222,6.60035846,148.53,148.52,6.7316]
[1745499383927,6.60035846,148.53,148.51,5.0]
[1745499384124,6.60035846,148.52,148.48,5.0]
[1745499384323,24.46,148.51,148.48,5.0]
[1745499384927,24.46,148.51,148.5,6.7325]
[1745499389827,31.06035846,148.54,148.53,6.7311]
[1745499392029,24.46,148.54,148.53,6.7311]
[1745499405142,24.46,148.54,148.53,13.33145846]
[1745499406840,509.2,148.58,148.57,6.7293]
[1745499409050,6.60035846,148.6,148.59,6.7284]
[1745499409351,31.06035846,148.6,148.59,6.7284]
[1745499409843,31.06035846,148.6,148.56,5.0]
[1745499410041,6.60035846,148.59,148.56,5.0]
[1745499410552,6.60035846,148.59,148.58,6.7289]
[1745499410849,31.06035846,148.6,148.59,6.7284]
[1745499413150,24.46,148.6,148.59,6.7284]
[1745499416054,24.46,148.6,148.54,13.4608]
[1745499416055,24.46,148.6,148.53,5.0]
[1745499416354,6.60035846,148.56,148.53,5.0]
[1745499416555,31.06035846,148.56,148.55,6.7302]
[1745499420457,6.60035846,148.56,148.55,6.7302]
[1745499422053,24.46,148.63,148.57,5.0]
[1745499422358,6.60035846,148.61,148.57,5.0]
[1745499422557,6.60035846,148.61,148.6,6.7277]
[1745499424963,6.60035846,148.62,148.61,6.7275]
[1745499426055,6.60035846,148.62,148.6,6.7279]
[1745499426255,6.60035846,148.61,148.57,11.60035846]
[1745499427359,6.60035846,148.61,148.57,5.0]
[1745499428463,6.60035846,148.61,148.6,6.7279]
[1745499430561,6.60035846,148.61,148.57,5.0]
[1745499430857,6.60035846,148.59,148.58,6.7289]
[1745499431059,31.04035846,148.59,148.58,6.7289]
[1745499436661,24.44,148.59,148.58,6.7289]
[1745499436965,31.04035846,148.59,148.58,6.7289]
[1745499439469,31.04035846,148.59,148.54,5.0]
[1745499439965,6.60035846,148.55,148.54,5.0]
[1745499440167,31.04035846,148.55,148.5,20.06525846]
[1745499440469,24.44,148.55,148.54,6.7307]
[1745499448775,31.04035846,148.55,148.54,6.7307]
[1745499454871,37.77065846,148.55,148.53,6.7309]
[1745499455077,6.60035846,148.54,148.53,6.7309]
[1745499455280,6.60035846,148.54,148.49,5.0]
[1745499455479,6.60035846,148.52,148.51,6.732]
[1745499456481,6.60035846,148.53,148.52,6.7316]
[1745499464186,6.7318,148.52,148.5,6.7323]
[1745499464481,31.04035846,148.51,148.5,6.7323]
[1745499469389,24.44,148.51,148.5,6.7323]
[1745499470193,6.60035846,148.53,148.52,6.7316]
[1745499475696,6.60035846,148.53,148.51,6.7316]
[1745499475894,6.60035846,148.53,148.49,5.0]
[1745499476994,6.60035846,148.53,148.49,11.7329]
[1745499477494,13.33145846,148.53,148.49,5.0]
[1745499477696,6.60035846,148.53,148.49,5.0]
[1745499478597,13.33175846,148.53,148.49,5.0]
[1745499479297,6.60035846,148.51,148.49,5.0]
[1745499479698,24.44,148.5,148.49,5.0]
[1745499479998,24.44,148.5,148.47,6.7336]
[1745499482792,24.44,148.5,148.49,6.7329]
[1745499482999,6.60035846,148.51,148.49,5.0]
[1745499483400,6.60035846,148.5,148.49,5.0]
[1745499484706,13.33285846,148.5,148.49,5.0]
[1745499486999,13.33285846,148.5,148.45,8.9683]
[1745499487205,37.77325846,148.49,148.45,8.9683]
[1745499487608,37.77325846,148.49,148.46,6.7342]
[1745499487909,37.77325846,148.49,148.45,8.9683]
[1745499488208,37.77325846,148.49,148.46,6.7342]
[1745499488408,37.77325846,148.49,148.45,8.9683]
[1745499489408,37.77325846,148.49,148.47,6.7338]
[1745499490609,31.04035846,148.49,148.48,6.7334]
[1745499491106,24.44,148.49,148.48,6.7334]
[1745499491309,24.44,148.49,148.48,11.7334]
[1745499497115,31.04035846,148.49,148.48,5.0]
[1745499497415,31.04035846,148.49,148.44,5.0]
[1745499497616,37.77355846,148.49,148.44,11.60035846]
[1745499500217,6.7334,148.48,148.44,11.60035846]
[1745499500417,13.33375846,148.48,148.44,11.60035846]
[1745499500721,6.60035846,148.48,148.44,11.60035846]
[1745499501822,13.33405846,148.48,148.44,11.60035846]
[1745499502020,13.33405846,148.48,148.44,5.0]
[1745499502220,6.60035846,148.48,148.44,11.60035846]
[1745499502412,37.77345846,148.49,148.47,5.0]
[1745499504522,6.7334,148.48,148.47,5.0]
[1745499505222,37.77355846,148.49,148.47,5.0]
[1745499505425,31.04035846,148.49,148.47,5.0]
[1745499505728,37.77355846,148.49,148.47,5.0]
[1745499506427,13.33375846,148.48,148.47,5.0]
[1745499506722,13.33375846,148.48,148.44,5.0]
[1745499507425,6.7334,148.48,148.44,5.0]
[1745499507726,6.60035846,148.48,148.44,5.0]
[1745499508827,6.60035846,148.48,148.47,5.0]
[1745499509627,6.7322,148.51,148.47,11.60035846]
[1745499509827,37.77255846,148.51,148.47,11.60035846]
[1745499510127,37.77255846,148.51,148.47,5.0]
[1745499510428,37.77255846,148.51,148.48,6.7331]
[1745499510632,6.60035846,148.5,148.48,6.7331]
[1745499511432,13.33285846,148.5,148.48,6.7331]
[1745499512126,24.44,148.51,148.48,6.60035846]
[1745499512527,24.44,148.51,148.47,11.60035846]
[1745499512728,24.44,148.51,148.5,6.7325]
[1745499514231,24.44,148.51,148.5,11.7325]
[1745499514735,24.44,148.51,148.5,5.0]
[1745499515931,24.44,148.51,148.5,11.7325]
[1745499516332,31.172,148.51,148.5,5.0]
[1745499516630,37.77235846,148.51,148.5,5.0]
[1745499521334,6.7327,148.5,148.47,5.0]
[1745499521633,6.60035846,148.49,148.47,5.0]
[1745499522026,13.33335846,148.49,148.47,11.7337]
[1745499524237,6.60035846,148.49,148.47,11.7337]
[1745499525935,13.33335846,148.49,148.47,11.7337]
[1745499526138,6.60035846,148.49,148.47,5.0]
[1745499526434,13.33365846,148.49,148.47,5.0]
[1745499526733,6.60035846,148.49,148.47,5.0]
[1745499527037,13.33345846,148.49,148.47,5.0]
[1745499527436,13.33345846,148.49,148.47,11.7338]
[1745499528037,6.60035846,148.49,148.47,11.7338]
[1745499528537,13.33325846,148.49,148.47,11.7338]
[1745499528742,6.60035846,148.49,148.47,11.7338]
[1745499530138,6.60035846,148.49,148.48,6.7334]
[1745499530841,6.60035846,148.49,148.47,11.7336]
[1745499531440,6.60035846,148.49,148.48,6.7334]
[1745499535243,24.44,148.51,148.48,6.7334]
[1745499535449,24.44,148.51,148.5,6.7325]
[1745499535651,31.04035846,148.51,148.5,6.7325]
[1745499539157,31.04035846,148.51,148.5,11.7325]
[1745499550864,37.77235846,148.51,148.5,5.0]
[1745499551064,31.04035846,148.51,148.46,5.0]
[1745499551360,6.60035846,148.48,148.47,6.7338]
[1745499551564,6.60035846,148.49,148.46,5.0]
[1745499551862,6.60035846,148.49,148.48,6.7329]
[1745499555576,6.60035846,148.5,148.49,6.7329]
[1745499555868,6.60035846,148.5,148.49,11.7329]
[1745499573379,31.04035846,148.51,148.49,5.0]
[1745499573681,24.44,148.51,148.5,6.7325]
[1745499594399,6.60035846,148.55,148.54,6.7307]
[1745499594593,30.98035846,148.55,148.54,6.7307]
[1745499595700,6.60035846,148.55,148.54,6.7307]
[1745499596000,30.98035846,148.55,148.54,6.7307]
[1745499596194,511.2251,148.57,148.56,6.7298]
[1745499596399,509.16,148.57,148.56,6.7298]
[1745499596801,515.76035846,148.57,148.56,6.7298]
[1745499600406,515.76035846,148.57,148.55,11.7301]
[1745499600702,6.60035846,148.56,148.55,11.7301]
[1745499601799,509.16,148.57,148.56,6.7298]
[1745499601996,515.76035846,148.57,148.56,6.7298]
[1745499603108,24.38,148.61,148.6,6.7275]
[1745499603507,30.98035846,148.61,148.6,6.7275]
[1745499604604,24.38,148.61,148.6,6.7275]
[1745499605103,30.98035846,148.61,148.6,6.7275]
[1745499605507,24.38,148.61,148.6,6.7275]
[1745499605708,30.98035846,148.61,148.6,6.7275]
[1745499606103,30.98035846,148.61,148.59,6.7284]
[1745499606308,6.60035846,148.6,148.59,6.7284]
[1745499606608,6.60035846,148.6,148.58,5.0]
[1745499606815,6.60035846,148.59,148.58,5.0]
[1745499608311,6.60035846,148.59,148.58,11.7286]
[1745499610514,31.1075,148.61,148.58,11.7286]
[1745499610711,6.60035846,148.59,148.51,357.0]
[1745499610907,6.60035846,148.55,148.49,1.893]
[1745499611111,24.38,148.55,148.52,6.60035846]
[1745499611713,24.38,148.55,148.54,5.0]
[1745499612215,24.38,148.55,148.54,11.7307]
[1745499617817,30.98035846,148.55,148.54,11.7307]
[1745499618520,30.98035846,148.55,148.54,5.0]
[1745499619216,30.98035846,148.55,148.54,11.7307]
[1745499619419,24.38,148.55,148.54,11.7307]
[1745499619614,30.98035846,148.55,148.54,11.7307]
[1745499632134,30.98035846,148.55,148.54,5.0]
[1745499632333,30.98035846,148.55,148.53,6.7308]
[1745499632534,6.60035846,148.54,148.53,6.7308]
[1745499636633,13.33105846,148.54,148.51,5.0]
[1745499636838,6.60035846,148.52,148.51,5.0]
[1745499638239,6.60035846,148.52,148.51,11.7316]
[1745499638538,6.60035846,148.52,148.51,6.7316]
[1745499639237,31.1104,148.55,148.52,6.7312]
[1745499639536,24.38,148.55,148.48,8.49865846]
[1745499639744,30.98035846,148.55,148.5,6.60035846]
[1745499640039,30.98035846,148.55,148.54,6.7307]
[1745499640241,30.98035846,148.55,148.48,1.8983]
[1745499640433,6.60035846,148.52,148.51,5.0]
[1745499641041,6.60035846,148.52,148.51,11.732]
[1745499641440,30.98035846,148.52,148.51,11.732]
[1745499641731,37.71195846,148.52,148.43,13.4712]
[1745499641936,6.60035846,148.49,148.44,363.60035846]
[1745499642138,6.60035846,148.5,148.45,6.60035846]
[1745499642336,6.60035846,148.51,148.43,13.4712]
[1745499642640,24.38,148.52,148.48,6.60035846]
[1745499642841,24.38,148.52,148.5,6.7321]
[1745499643134,24.38,148.52,148.48,6.60035846]
[1745499644145,24.38,148.52,148.51,6.732]
[1745499645544,30.98035846,148.52,148.51,6.732]
[1745499647041,6.7297,148.57,148.49,6.60035846]
[1745499647245,30.96035846,148.56,148.52,5.0]
[1745499647545,6.60035846,148.54,148.52,5.0]
[1745499648444,6.60035846,148.54,148.53,6.731]
[1745499649246,31.09,148.56,148.53,6.731]
[1745499649446,6.60035846,148.55,148.53,6.731]
[1745499650144,24.36,148.56,148.52,5.0]
[1745499650544,6.60035846,148.55,148.52,5.0]
[1745499650746,6.60035846,148.55,148.53,6.7307]
[1745499651342,6.60035846,148.54,148.53,6.7307]
[1745499651542,6.60035846,148.54,148.52,11.7314]
[1745499651841,6.60035846,148.53,148.52,6.7314]
[1745499654446,6.60035846,148.55,148.49,11.60035846]
[1745499654745,6.60035846,148.55,148.52,5.0]
[1745499655442,6.60035846,148.55,148.54,6.7307]
[1745499657246,6.60035846,148.55,148.53,6.7309]
[1745499657447,6.60035846,148.54,148.52,5.0]
[1745499657645,6.60035846,148.54,148.49,5.0]
[1745499657846,6.60035846,148.52,148.51,6.732]
[1745499658043,30.96035846,148.52,148.51,6.732]
[1745499659544,24.36,148.52,148.51,6.732]
[1745499664956,24.36,148.52,148.49,5.0]
[1745499665455,24.36,148.52,148.5,6.7322]
[1745499665954,6.60035846,148.51,148.5,6.7322]
[1745499666151,6.60035846,148.51,148.49,11.7328]
[1745499666350,6.60035846,148.5,148.49,11.7328]
[1745499669349,6.60035846,148.51,148.5,6.7321]
[1745499669550,30.96035846,148.52,148.49,5.0]
[1745499671255,30.96035846,148.52,148.51,6.732]
[1745499672156,24.36,148.52,148.51,6.732]
[1745499674762,37.69215846,148.52,148.5,6.7323]
[1745499675058,6.60035846,148.51,148.5,6.7323]
[1745499677768,6.7325,148.5,148.45,15.61025846]
[1745499677966,6.7325,148.5,148.45,9.0099]
[1745499677967,6.60035846,148.49,148.45,9.0099]
[1745499678268,24.36,148.48,148.45,9.0099]
[1745499678967,24.36,148.48,148.47,6.7338]
[1745499684870,24.36,148.51,148.47,6.60035846]
[1745499685064,24.36,148.51,148.49,5.0]
[1745499685569,24.36,148.51,148.49,11.60035846]
[1745499686270,24.36,148.51,148.5,6.7325]
[1745499709487,24.36,148.51,148.5,13.33285846]
[1745499709889,6.60035846,148.55,148.54,6.7307]
[1745499710085,30.94035846,148.55,148.5,6.60035846]
[1745499710988,30.94035846,148.55,148.53,6.7309]
[1745499711186,6.60035846,148.54,148.49,5.0]
[1745499711386,6.60035846,148.52,148.49,5.0]
[1745499711586,24.34,148.51,148.49,5.0]
[1745499712288,24.34,148.51,148.5,6.7321]
[1745499717587,30.94035846,148.51,148.49,6.7327]
[1745499717891,30.94035846,148.51,148.45,6.60035846]
[1745499718088,30.94035846,148.51,148.5,6.7325]
[1745499722193,30.94035846,148.51,148.5,11.7325]
[1745499722194,24.34,148.51,148.5,11.7325]
[1745499734700,30.94035846,148.51,148.5,5.0]
[1745499734901,30.94035846,148.51,148.49,6.7328]
[1745499735403,30.94035846,148.51,148.5,6.7325]
[1745499735598,24.34,148.51,148.5,11.7325]
[1745499741302,6.60035846,148.52,148.51,6.732]
[1745499741707,30.94035846,148.53,148.5,5.0]
[1745499742105,30.94035846,148.53,148.52,6.7316]
[1745499743006,30.94035846,148.53,148.51,6.7318]
[1745499743201,6.732,148.52,148.5,5.0]
[1745499743402,6.60035846,148.51,148.5,5.0]
[1745499743606,6.60035846,148.51,148.47,5.0]
[1745499743809,6.60035846,148.51,148.49,6.7327]
[1745499746005,6.60035846,148.51,148.5,6.7325]
[1745499746207,6.60035846,148.51,148.49,6.7328]
[1745499746408,6.60035846,148.5,148.49,6.7328]
[1745499750212,13.33285846,148.5,148.48,6.7332]
[1745499750510,30.94035846,148.49,148.47,5.0]
[1745499750714,30.94035846,148.48,148.47,5.0]
[1745499750913,30.94035846,148.48,148.47,11.7335]
[1745499753617,30.94035846,148.48,148.44,5.0]
[1745499753815,6.60035846,148.47,148.44,5.0]
[1745499754118,6.60035846,148.46,148.45,6.7347]
[1745499760022,6.60035846,148.47,148.46,6.7343]
[1745499760627,24.34,148.48,148.44,11.60035846]
[1745499760826,24.34,148.48,148.47,6.7338]
[1745499761627,30.94035846,148.48,148.47,6.7338]
[1745499762430,30.94035846,148.48,148.46,6.734]
[1745499762633,6.60035846,148.47,148.46,6.734]
[1745499763930,24.34,148.48,148.47,6.7338]
[1745499764133,34.57815042,148.48,148.47,6.7338]
[1745499765231,34.57877803,148.48,148.47,6.7338]
[1745499765830,41.31247803,148.48,148.44,5.0]
[1745499766128,10.23877803,148.46,148.44,5.0]
[1745499766330,10.23877803,148.46,148.45,6.7347]
[1745499779437,24.34,148.48,148.42,10.23877803]